fUST/lending_fUST_20240704
["ID","MTS","AMOUNT","RATE_DAILY","PERIOD"]
[331104120,1720083052055,-1442.21,0.00015252,2]
[331104121,1720083052064,-740.5220499,0.00015252,2]
[331104122,1720083052228,-500.0,0.00014157,2]
[331104123,1720083052238,-500.0,0.00014168,2]
[331104124,1720083052247,-500.0,0.00014168,2]
[331104125,1720083052256,-500.0,0.00014442,2]
[331104126,1720083052266,-1932.3579501,0.00015252,2]
[331104127,1720083052276,-500.0,0.00015253,2]
[331104128,1720083052285,-715.97,0.00015253,2]
[331104129,1720083052294,-500.0,0.00015253,2]
[331104130,1720083052306,-101.6720499,0.00015253,2]
[331104131,1720083052325,-500.0,0.00014168,2]
[331104132,1720083052335,-398.3279501,0.00015253,2]
[331104133,1720083052344,-500.0,0.00015253,2]
[331104134,1720083052354,-1911.74,0.00015253,2]
[331104135,1720083052364,-500.0,0.00015253,2]
[331104136,1720083052373,-2456.32,0.00015253,2]
[331104137,1720083052383,-1284.6,0.00015253,2]
[331104138,1720083052392,-1109.21,0.00015253,2]
[331104139,1720083052403,-500.0,0.00015253,2]
[331104140,1720083052412,-611.11474465,0.00015253,2]
[331104141,1720083052640,-3172.92457698,0.00015253,2]
[331104142,1720083055541,927.0805827,0.0001212,2]
[331104144,1720083067483,11147.45043014,0.0001212,2]
[331104145,1720083068246,1913.78185736,0.0001212,2]
[331104152,1720083208437,274.03,0.00014,2]
[331104153,1720083236815,181.84215111,0.00014,2]
[331104155,1720083253424,3127.86613877,0.00014999,4]
[331104156,1720083266453,200.79020594,9.999e-05,2]
[331104160,1720083300623,264.19433868,9.999e-05,2]
[331104161,1720083329125,442.29493972,9.999e-05,2]
[331104163,1720083471498,200.79020594,0.0001212,2]
[331104164,1720083488200,402.27259055,0.0001212,2]
[331104165,1720083492685,178.14587191,0.0001212,2]
[331104196,1720083559506,227.0413747,0.00013148,2]
[331107425,1720083759335,257.0,0.00014,2]
[331108542,1720083871237,314.0,0.00014147,62]
[331108543,1720083871267,150.5,0.00014147,62]
[331108544,1720083871708,314.0,0.00014137,62]
[331108545,1720083871738,150.5,0.00014137,62]
[331108546,1720083872196,150.5,0.00014127,62]
[331108547,1720083872499,314.0,0.00014127,62]
[331108548,1720083872975,314.0,0.0001968,62]
[331108549,1720083873405,164.0,0.0001968,62]
[331108550,1720083873456,314.0,0.0001967,62]
[331108551,1720083873903,314.0,0.0001966,62]
[331108554,1720083991129,150.5,0.00014147,62]
[331108556,1720083991358,150.5,0.00014137,62]
[331108557,1720083991440,150.5,0.00014147,62]
[331108558,1720083991472,150.5,0.00014147,62]
[331108559,1720083991727,150.5,0.00014137,62]
[331108560,1720083991755,150.5,0.00014127,62]
[331108561,1720083991784,150.5,0.00014137,62]
[331108562,1720083992392,152.14,0.0001968,62]
[331108563,1720083992421,200.67,0.00014127,62]
[331108564,1720083992452,150.5,0.00014127,62]
[331108565,1720083992613,150.5,0.00014147,62]
[331108566,1720083992778,150.5,0.00014147,62]
[331108567,1720083992931,150.5,0.00014137,62]
[331108568,1720083992978,150.5,0.00014137,62]
[331108569,1720083994032,150.5,0.00014127,62]
[331108570,1720083994120,150.5,0.00014127,62]
[331108571,1720083994519,295.4,0.0001968,62]
[331108572,1720083994651,150.5,0.0001968,62]
[331108573,1720083995229,150.5,0.0001967,62]
[331108574,1720083995712,150.5,0.0001966,62]
[331108575,1720084013417,1365.53892014,0.00022,30]
[331108576,1720084025168,-162.77958479,0.00014046,2]
[331108577,1720084025188,-531.85175135,0.00014058,2]
[331108578,1720084031105,-2831.83646381,0.00014058,2]
[331108579,1720084043164,-1225.20925524,0.00014058,2]
[331108580,1720084043184,-300.0,0.00014142,2]
[331108581,1720084043357,-300.0,0.00014142,2]
[331108582,1720084043378,-1140.50047029,0.00014143,2]
[331108583,1720084043399,-401.38890287,0.00014143,2]
[331108584,1720084043420,-7.9186142,0.00014143,2]
[331108627,1720084113064,150.5,0.0001419,62]
[331108628,1720084113559,204.97,0.0001418,62]
[331108629,1720084119136,201.89356844,0.00025,120]
[331108903,1720084233414,-300.0,0.00014135,2]
[331108904,1720084233424,-300.0,0.00014135,2]
[331108906,1720084233434,-500.39000885,0.00014135,2]
[331108908,1720084233444,-476.22911481,0.00014135,2]
[331108910,1720084233453,-401.78823999,0.00014135,2]
[331108911,1720084233463,-69564.3940598,0.00014136,2]
[331108912,1720084233472,-69564.3940598,0.00014137,2]
[331108913,1720084233482,-1319.28,0.00014143,2]
[331108914,1720084233491,-2444.05,0.00014143,2]
[331108915,1720084233501,-658.11,0.00014143,2]
[331108916,1720084233511,-502.4742163,0.00014143,2]
[331108917,1720084233520,-505.54766665,0.00014143,2]
[331108918,1720084233530,-511.27214368,0.00014143,2]
[331108919,1720084233540,-500.0,0.00014143,2]
[331108920,1720084233549,-500.0,0.00014143,2]
[331108921,1720084233559,-195.03964305,0.00014143,2]
[331108923,1720084237660,5000.0,0.00025,120]
[331108947,1720084239229,-2000.0,0.00014066,2]
[331108948,1720084239239,-309.43972343,0.00014143,2]
[331108950,1720084239251,-1674.35,0.00014143,2]
[331108952,1720084239262,-2222.23,0.00014143,2]
[331108953,1720084239273,-1105.82,0.00014143,2]
[331108954,1720084239284,-500.0,0.00014143,2]
[331108955,1720084239295,-500.0,0.00014143,2]
[331108956,1720084239306,-500.0,0.00014143,2]
[331108957,1720084239316,-1005.83,0.00014143,2]
[331108958,1720084239326,-500.0,0.00014143,2]
[331108959,1720084239336,-500.0,0.00014143,2]
[331108960,1720084239345,-500.0,0.00014143,2]
[331108961,1720084239355,-1158.79679099,0.00014143,2]
[331108962,1720084239393,-3121.62320901,0.00014143,2]
[331108963,1720084239403,-2095.92,0.00014143,2]
[331108964,1720084239413,-500.0,0.00014143,2]
[331108965,1720084239423,-574.53051683,0.00014143,2]
[331108966,1720084239432,-502.05000634,0.00014143,2]
[331108967,1720084239443,-500.0,0.00014143,2]
[331108968,1720084239452,-500.0,0.00014143,2]
[331108969,1720084239463,-500.0,0.00014143,2]
[331108972,1720084239472,-348.33927909,0.00014143,2]
[331108974,1720084239484,-4263.48996828,0.00014143,2]
[331108975,1720084239497,-7324.44075263,0.00014143,2]
[331108976,1720084239507,-500.0,0.00014145,2]
[331108977,1720084239517,-18819.63374766,0.00014146,2]
[331108978,1720084239527,-511.49372952,0.00014146,2]
[331108979,1720084239537,-500.0,0.00014146,2]
[331108980,1720084239547,-500.0,0.00014146,2]
[331108981,1720084239557,-500.0,0.00014146,2]
[331108982,1720084239567,-500.0,0.00014146,2]
[331108983,1720084239578,-931.21,0.00014146,2]
[331108984,1720084239588,-500.0,0.00014146,2]
[331108985,1720084239598,-535.1131884,0.00014146,2]
[331108986,1720084239619,-503.96213452,0.00014146,2]
[331108987,1720084239629,-500.0,0.00014146,2]
[331108988,1720084239639,-500.0,0.00014146,2]
[331108989,1720084239649,-500.0,0.00014146,2]
[331108990,1720084239661,-500.0,0.00014146,2]
[331108991,1720084239671,-1199.16,0.00014146,2]
[331108992,1720084239681,-500.0,0.00014146,2]
[331108993,1720084239691,-500.0,0.00014146,2]
[331108994,1720084239700,-500.0,0.00014146,2]
[331108995,1720084239710,-500.0,0.00014146,2]
[331108996,1720084239720,-500.0,0.00014146,2]
[331108997,1720084239730,-500.0,0.00014146,2]
[331108998,1720084239740,-500.0,0.00014146,2]
[331108999,1720084239750,-500.0,0.00014146,2]
[331109000,1720084239760,-771.24,0.00014146,2]
[331109001,1720084239770,-537.37123027,0.00014146,2]
[331109002,1720084239780,-1082.44,0.00014146,2]
[331109003,1720084239791,-602.07,0.00014146,2]
[331109004,1720084239801,-500.0,0.00014146,2]
[331109005,1720084239811,-506.14753756,0.00014146,2]
[331109006,1720084239822,-501.72286971,0.00014146,2]
[331109007,1720084239832,-518.2131094,0.00014146,2]
[331109008,1720084239841,-500.0,0.00014146,2]
[331109009,1720084239853,-664.22,0.00014146,2]
[331109010,1720084239864,-500.0,0.00014146,2]
[331109011,1720084239874,-503.86835803,0.00014146,2]
[331109012,1720084239883,-426.89802828,0.00014146,2]
[331109013,1720084239894,-500.0,0.00014146,2]
[331109015,1720084239903,-503.46329121,0.00014146,2]
[331109017,1720084239913,-500.0,0.00014146,2]
[331109019,1720084239924,-507.69000949,0.00014146,2]
[331109021,1720084239933,-500.0,0.00014146,2]
[331109023,1720084239943,-610.35,0.00014146,2]
[331109025,1720084239952,-500.0,0.00014146,2]
[331109027,1720084239962,-501.47314881,0.00014146,2]
[331109029,1720084239971,-503.56967856,0.00014146,2]
[331109031,1720084239981,-501.6671314,0.00014146,2]
[331109032,1720084239991,-500.0,0.00014146,2]
[331109033,1720084240001,-500.0,0.00014146,2]
[331109034,1720084240011,-500.0,0.00014146,2]
[331109035,1720084240021,-504.81924249,0.00014146,2]
[331109036,1720084240031,-500.0,0.00014146,2]
[331109037,1720084240041,-500.0,0.00014146,2]
[331109039,1720084240051,-502.604327,0.00014146,2]
[331109041,1720084240060,-503.36225032,0.00014146,2]
[331109043,1720084240070,-500.0,0.00014146,2]
[331109045,1720084240080,-500.0,0.00014146,2]
[331109046,1720084240089,-502.09919256,0.00014146,2]
[331109047,1720084240099,-162.8326842,0.00014146,2]
[331109048,1720084240111,-510.74215904,0.00014146,2]
[331109049,1720084240120,-500.0,0.00014146,2]
[331109050,1720084240130,-501.76799852,0.00014146,2]
[331109051,1720084240141,-500.0,0.00014146,2]
[331109052,1720084240152,-553.63665553,0.00014146,2]
[331109053,1720084240162,-504.99510701,0.00014146,2]
[331109054,1720084240172,-511.16727912,0.00014146,2]
[331109055,1720084240183,-500.0,0.00014146,2]
[331109056,1720084240193,-506.62783324,0.00014146,2]
[331109057,1720084240203,-490.48160834,0.00014146,2]
[331109058,1720084240213,-500.0,0.00014146,2]
[331109059,1720084240227,-504.30316404,0.00014146,2]
[331109060,1720084240237,-500.0,0.00014146,2]
[331109061,1720084240247,-500.0,0.00014146,2]
[331109062,1720084240256,-500.0,0.00014146,2]
[331109063,1720084240267,-500.0,0.00014146,2]
[331109064,1720084240277,-500.0,0.00014146,2]
[331109065,1720084240287,-500.0,0.00014146,2]
[331109066,1720084240301,-500.0,0.00014146,2]
[331109067,1720084240310,-544.49,0.00014146,2]
[331109068,1720084240320,-8550.1,0.00014146,2]
[331109069,1720084240331,-500.0,0.00014146,2]
[331109070,1720084240340,-500.0,0.00014146,2]
[331109071,1720084240350,-500.0,0.00014146,2]
[331109072,1720084240360,-500.0,0.00014146,2]
[331109073,1720084240370,-606.05,0.00014146,2]
[331109074,1720084240380,-500.0,0.00014146,2]
[331109075,1720084240390,-500.0,0.00014146,2]
[331109076,1720084240399,-500.0,0.00014146,2]
[331109077,1720084240409,-505.11401885,0.00014146,2]
[331109078,1720084240418,-1021.19,0.00014146,2]
[331109079,1720084240429,-500.0,0.00014146,2]
[331109080,1720084240438,-500.0,0.00014146,2]
[331109081,1720084240448,-503.92741443,0.00014146,2]
[331109082,1720084240457,-500.0,0.00014146,2]
[331109083,1720084240467,-917.34,0.00014146,2]
[331109084,1720084240476,-714.43,0.00014146,2]
[331109085,1720084240486,-500.0,0.00014146,2]
[331109086,1720084240495,-4278.65,0.00014146,2]
[331109087,1720084240504,-500.0,0.00014146,2]
[331109088,1720084240514,-500.0,0.00014146,2]
[331109089,1720084240523,-500.0,0.00014146,2]
[331109090,1720084240532,-503.65634157,0.00014146,2]
[331109091,1720084240542,-204.18148296,0.00014146,2]
[331109092,1720084240551,-503.50219677,0.00014146,2]
[331109093,1720084240561,-500.0,0.00014146,2]
[331109094,1720084240570,-500.0,0.00014146,2]
[331109095,1720084240580,-500.0,0.00014146,2]
[331109096,1720084240589,-500.0,0.00014146,2]
[331109097,1720084240598,-500.0,0.00014146,2]
[331109098,1720084240608,-500.0,0.00014146,2]
[331109099,1720084240618,-500.0,0.00014146,2]
[331109100,1720084240627,-673.88,0.00014146,2]
[331109101,1720084240636,-500.0,0.00014146,2]
[331109102,1720084240646,-502.10915572,0.00014146,2]
[331109103,1720084240655,-500.0,0.00014146,2]
[331109104,1720084240665,-510.97097671,0.00014146,2]
[331109105,1720084240675,-500.0,0.00014146,2]
[331109106,1720084240684,-500.0,0.00014146,2]
[331109107,1720084240694,-500.0,0.00014146,2]
[331109108,1720084240704,-505.56508567,0.00014146,2]
[331109109,1720084240713,-500.0,0.00014146,2]
[331109110,1720084240722,-507.55288444,0.00014146,2]
[331109111,1720084240732,-500.0,0.00014146,2]
[331109112,1720084240741,-500.0,0.00014146,2]
[331109113,1720084240751,-503.16572346,0.00014146,2]
[331109114,1720084240895,-500.0,0.00014146,2]
[331109115,1720084240906,-505.32110935,0.00014146,2]
[331109116,1720084240916,-500.0,0.00014146,2]
[331109117,1720084240927,-500.0,0.00014146,2]
[331109118,1720084240936,-500.0,0.00014146,2]
[331109119,1720084240947,-783.69,0.00014146,2]
[331109120,1720084240957,-500.0,0.00014146,2]
[331109121,1720084240967,-503.90733195,0.00014146,2]
[331109122,1720084240977,-500.0,0.00014146,2]
[331109123,1720084240986,-504.65355884,0.00014146,2]
[331109124,1720084240995,-587.78,0.00014146,2]
[331109125,1720084241004,-500.0,0.00014146,2]
[331109126,1720084241014,-504.77945916,0.00014146,2]
[331109127,1720084241023,-500.0,0.00014146,2]
[331109128,1720084241032,-503.59347926,0.00014146,2]
[331109129,1720084241041,-502.06983796,0.00014146,2]
[331109130,1720084241051,-801.32,0.00014146,2]
[331109131,1720084241060,-497.1566344,0.00014146,2]
[331109132,1720084241070,-520.20156339,0.00014146,2]
[331109133,1720084241080,-500.0,0.00014146,2]
[331109134,1720084241090,-500.77609485,0.00014146,2]
[331109135,1720084241099,-504.30890535,0.00014146,2]
[331109136,1720084241111,-500.0,0.00014146,2]
[331109137,1720084241120,-500.0,0.00014146,2]
[331109138,1720084241130,-500.0,0.00014146,2]
[331109139,1720084241141,-500.0,0.00014146,2]
[331109140,1720084241150,-502.34874474,0.00014146,2]
[331109141,1720084241160,-500.0,0.00014146,2]
[331109142,1720084241169,-500.0,0.00014146,2]
[331109143,1720084241179,-500.0,0.00014146,2]
[331109144,1720084241188,-500.0,0.00014146,2]
[331109145,1720084241198,-500.0,0.00014146,2]
[331109146,1720084241209,-1126.94,0.00014146,2]
[331109147,1720084241220,-504.38404798,0.00014146,2]
[331109148,1720084241229,-500.0,0.00014146,2]
[331109149,1720084241239,-500.0,0.00014146,2]
[331109150,1720084241248,-634.92190517,0.00014146,2]
[331109151,1720084241258,-515.76908694,0.00014146,2]
[331109152,1720084241267,-500.0,0.00014146,2]
[331109153,1720084241276,-500.0,0.00014146,2]
[331109154,1720084241288,-500.0,0.00014146,2]
[331109155,1720084241297,-508.21476531,0.00014146,2]
[331109156,1720084241306,-500.0,0.00014146,2]
[331109157,1720084241315,-500.0,0.00014146,2]
[331109158,1720084241324,-809.12,0.00014146,2]
[331109159,1720084241333,-500.0,0.00014146,2]
[331109160,1720084241343,-500.0,0.00014146,2]
[331109161,1720084241353,-34782.1970299,0.00014147,2]
[331109162,1720084241362,-26102.94790249,0.00014148,2]
[331109163,1720084241451,-500.0,0.00014146,2]
[331109164,1720084241460,-2724.0,0.00014148,2]
[331109165,1720084241472,-5955.24912741,0.00014148,2]
[331109166,1720084241481,-1126.94,0.00014154,2]
[331109167,1720084241490,-1126.94,0.00014155,2]
[331109168,1720084241499,-3709.63,0.00014156,2]
[331109169,1720084241509,-500.0,0.00014156,2]
[331109170,1720084241518,-503.76768047,0.00014156,2]
[331109171,1720084241527,-526.53096943,0.00014156,2]
[331109172,1720084241536,-508.97126936,0.00014156,2]
[331109173,1720084241546,-505.1792998,0.00014156,2]
[331109174,1720084241555,-838.19,0.00014156,2]
[331109175,1720084241564,-500.0,0.00014156,2]
[331109176,1720084241573,-500.0,0.00014156,2]
[331109177,1720084241582,-571.80783564,0.00014156,2]
[331109178,1720084241591,-500.0,0.00014156,2]
[331109179,1720084241600,-500.0,0.00014156,2]
[331109180,1720084241611,-500.0,0.00014156,2]
[331109181,1720084241621,-500.0,0.00014156,2]
[331109182,1720084241630,-500.0,0.00014156,2]
[331109183,1720084241640,-500.0,0.00014156,2]
[331109184,1720084241650,-500.0,0.00014156,2]
[331109185,1720084241658,-589.78587083,0.00014156,2]
[331109186,1720084241667,-500.0,0.00014156,2]
[331109187,1720084241677,-500.0,0.00014156,2]
[331109188,1720084241686,-500.0,0.00014156,2]
[331109189,1720084241695,-500.0,0.00014156,2]
[331109190,1720084241704,-516.86,0.00014156,2]
[331109191,1720084241713,-1126.94,0.00014156,2]
[331109192,1720084241723,-500.0,0.00014156,2]
[331109193,1720084241732,-500.0,0.00014156,2]
[331109194,1720084241741,-605.15,0.00014156,2]
[331109195,1720084241751,-500.0,0.00014156,2]
[331109196,1720084241761,-500.0,0.00014156,2]
[331109197,1720084241771,-500.0,0.00014157,2]
[331109198,1720084241780,-500.0,0.00014157,2]
[331109199,1720084241790,-217.3320723,0.00014157,2]
[331109200,1720084241800,-503.05682226,0.00014157,2]
[331109201,1720084241810,-500.0,0.00014157,2]
[331109202,1720084241819,-500.0,0.00014157,2]
[331109203,1720084241828,-500.0,0.00014157,2]
[331109204,1720084241837,-500.0,0.00014157,2]
[331109205,1720084241846,-500.0,0.00014157,2]
[331109206,1720084241860,-500.0,0.00014157,2]
[331109207,1720084241869,-502.87740889,0.00014157,2]
[331109208,1720084241883,-500.0,0.00014157,2]
[331109209,1720084241892,-522.61977104,0.00014157,2]
[331109210,1720084241902,-500.0,0.00014157,2]
[331109211,1720084241911,-246.26235896,0.00014157,2]
[331109212,1720084241924,-259.61117442,0.00014157,2]
[331109213,1720084241933,-160.23346555,0.00014157,2]
[331109252,1720084243320,-1297.42,0.00014143,2]
[331109253,1720084243329,-339.76653445,0.00014157,2]
[331109254,1720084243339,-289.76944855,0.00014157,2]
[331109255,1720084243351,-210.23055145,0.00014157,2]
[331109256,1720084243362,-517.2815086,0.00014157,2]
[331109257,1720084243371,-478.92156945,0.00014157,2]
[331109258,1720084243384,-21.07843055,0.00014157,2]
[331109259,1720084243394,-500.0,0.00014157,2]
[331109260,1720084243403,-502.26971491,0.00014157,2]
[331109261,1720084243412,-442.84673313,0.00014157,2]
[331109262,1720084243422,-502.45728506,0.00014157,2]
[331109263,1720084243431,-337.02783635,0.00014157,2]
[331109264,1720084243442,-162.97216365,0.00014157,2]
[331109265,1720084243451,-342.54667637,0.00014157,2]
[331109297,1720084248049,-3555.07,0.00014155,2]
[331109298,1720084248058,-31.99198405,0.00014157,2]
[331109299,1720084248069,-500.0,0.00014157,2]
[331109300,1720084248078,-500.0,0.00014157,2]
[331109301,1720084248088,-500.0,0.00014157,2]
[331109302,1720084248098,-500.0,0.00014157,2]
[331109303,1720084248109,-500.0,0.00014157,2]
[331109304,1720084248118,-500.0,0.00014157,2]
[331109305,1720084248128,-154.82195475,0.00014157,2]
[331109306,1720084248142,-505.97604869,0.00014157,2]
[331109307,1720084248152,-500.0,0.00014157,2]
[331109308,1720084248161,-500.0,0.00014157,2]
[331109309,1720084248171,-500.0,0.00014157,2]
[331109310,1720084248180,-502.20466651,0.00014157,2]
[331109311,1720084248190,-196.03920964,0.00014157,2]
[331109312,1720084248199,-500.0,0.00014157,2]
[331109313,1720084248209,-215.35728875,0.00014157,2]
[331109314,1720084248223,-505.88675269,0.00014157,2]
[331109315,1720084248232,-500.0,0.00014157,2]
[331109316,1720084248242,-201.87686333,0.00014157,2]
[331109317,1720084248253,-500.0,0.00014157,2]
[331109318,1720084248262,-435.94435733,0.00014157,2]
[331109319,1720084248272,-505.77673362,0.00014157,2]
[331109320,1720084248282,-500.0,0.00014157,2]
[331109321,1720084248292,-500.0,0.00014157,2]
[331109322,1720084248302,-500.0,0.00014157,2]
[331109323,1720084248312,-265.5,0.00014157,2]
[331109324,1720084248321,-500.0,0.00014157,2]
[331109325,1720084248330,-507.43195824,0.00014157,2]
[331109326,1720084248339,-256.62218242,0.00014157,2]
[331109327,1720084248351,-243.37781758,0.00014157,2]
[331109328,1720084248364,-500.0,0.00014157,2]
[331109329,1720084248373,-486.17017516,0.00014157,2]
[331109330,1720084248382,-500.0,0.00014157,2]
[331109331,1720084248391,-500.0,0.00014157,2]
[331109332,1720084248401,-29.71716452,0.00014157,2]
[331109333,1720084248527,-470.28283548,0.00014157,2]
[331109334,1720084248537,-500.0,0.00014157,2]
[331109335,1720084248546,-500.0,0.00014157,2]
[331109336,1720084248555,-500.0,0.00014157,2]
[331109337,1720084248564,-18029.90479687,0.00014158,2]
[331109347,1720084332823,-892.41,0.00014135,2]
[331109348,1720084332847,-500.0,0.00014135,2]
[331109349,1720084332870,-500.0,0.00014135,2]
[331109350,1720084332892,-211.0,0.00014142,2]
[331109351,1720084332918,-279.75,0.00014143,2]
[331109352,1720084332941,-631.25,0.00014143,2]
[331109353,1720084332965,-2348.07,0.00014143,2]
[331109354,1720084332988,-978.64,0.00014143,2]
[331109355,1720084333012,-879.11,0.00014143,2]
[331109356,1720084333035,-4100.37,0.00014143,2]
[331109357,1720084333057,-630.69,0.00014143,2]
[331109358,1720084333080,-500.0,0.00014143,2]
[331109359,1720084333102,-500.0,0.00014146,2]
[331109360,1720084333126,-500.0,0.00014146,2]
[331109361,1720084333149,-500.0,0.00014146,2]
[331109362,1720084333176,-500.0,0.00014146,2]
[331109363,1720084333201,-500.0,0.00014146,2]
[331109364,1720084333226,-500.0,0.00014146,2]
[331109365,1720084333254,-500.0,0.00014146,2]
[331109366,1720084333279,-500.0,0.00014146,2]
[331109367,1720084333304,-500.0,0.00014146,2]
[331109368,1720084333329,-500.0,0.00014146,2]
[331109369,1720084333352,-500.0,0.00014146,2]
[331109370,1720084333374,-500.0,0.00014146,2]
[331109371,1720084333396,-500.0,0.00014146,2]
[331109372,1720084333421,-803.26,0.00014155,2]
[331109373,1720084333442,-500.0,0.00014156,2]
[331109374,1720084333465,-500.0,0.00014156,2]
[331109375,1720084333490,-500.0,0.00014156,2]
[331109376,1720084333512,-606.64,0.00014156,2]
[331109377,1720084333535,-500.0,0.00014157,2]
[331109378,1720084333558,-500.0,0.00014157,2]
[331109379,1720084333581,-16752.29223303,0.00014158,2]
[331109380,1720084333603,-500.0,0.00014166,2]
[331109381,1720084333627,-500.0,0.00014166,2]
[331109382,1720084333650,-500.0,0.00014166,2]
[331109383,1720084333674,-500.0,0.00014166,2]
[331109384,1720084333696,-581.94,0.00014166,2]
[331109385,1720084333718,-500.0,0.00014166,2]
[331109386,1720084333741,-500.0,0.00014166,2]
[331109387,1720084333764,-500.0,0.00014166,2]
[331109388,1720084333785,-500.0,0.00014166,2]
[331109389,1720084333807,-500.0,0.00014166,2]
[331109390,1720084333830,-500.0,0.00014166,2]
[331109391,1720084333851,-500.0,0.00014166,2]
[331109392,1720084333875,-832.87,0.00014168,2]
[331109393,1720084333899,-1126.94,0.00014168,2]
[331109394,1720084333927,-500.0,0.00014168,2]
[331109395,1720084333949,-2610.01,0.00014168,2]
[331109396,1720084333975,-8825.94,0.0001419,2]
[331109397,1720084333997,-500.0,0.0001419,2]
[331109398,1720084334020,-504.35283484,0.0001419,2]
[331109399,1720084334044,-500.0,0.0001419,2]
[331109400,1720084334068,-4803.82,0.0001419,2]
[331109401,1720084334092,-500.0,0.0001419,2]
[331109402,1720084334115,-789.77698638,0.00014233,2]
[331109403,1720084334139,-162.77958479,0.0001431,2]
[331109404,1720084334168,-32648.08836096,0.00014398,2]
[331109405,1720084369593,200.0,0.00025,120]
[331109406,1720084395959,1366.0,0.00025,120]
[331109407,1720084559674,204.26,0.00010959,2]
[331109408,1720084570141,170.21,0.00010959,2]
[331109409,1720084580611,851.09,0.00010959,2]
[331109410,1720084632375,776.91953525,9.999e-05,2]
[331109430,1720084691863,270.1363063,0.0001212,2]
[331109453,1720084985246,168.547668,0.00023562,80]
[331109454,1720084985611,168.547668,0.00023562,119]
[331109467,1720085227150,-164.43815915,0.00014034,2]
[331109468,1720085227174,-660.27525033,0.00014042,2]
[331109469,1720085227197,-150.0,0.00014053,2]
[331109470,1720085227220,-309.7057795,0.00014055,2]
[331109471,1720085227242,-204.09819206,0.00014133,2]
[331109472,1720085227265,-172.19495999,0.00014133,2]
[331109473,1720085227286,-300.0,0.00014133,2]
[331109474,1720085227486,-500.0,0.00014134,2]
[331109475,1720085227509,-299.93551421,0.00014134,2]
[331109476,1720085229117,-155.75056647,0.00014134,2]
[331109477,1720085236119,-44.31391932,0.00014134,2]
[331109478,1720085236142,-517.71054775,0.00014134,2]
[331109479,1720085254102,-116.52945225,0.00014134,2]
[331109480,1720085254126,-500.0,0.00014134,2]
[331109481,1720085254148,-383.02884873,0.00014134,2]
[331109484,1720085306592,-484.95644704,0.00014055,2]
[331109498,1720085422306,268.084681,0.00014034,2]
[331109540,1720085433599,-78.19127036,0.00014034,2]
[331109542,1720085433608,-500.0,0.00014133,2]
[331109544,1720085433617,-500.0,0.00014134,2]
[331109546,1720085433627,-500.0,0.00014134,2]
[331109548,1720085433636,-667.11,0.00014134,2]
[331109550,1720085433645,-612.59,0.00014134,2]
[331109551,1720085433654,-3404.10872965,0.00014134,2]
[331109552,1720085433666,-8736.39127035,0.00014134,2]
[331109553,1720085433675,-1303.46,0.00014134,2]
[331109554,1720085433684,-500.0,0.00014134,2]
[331109555,1720085433693,-500.0,0.00014134,2]
[331109556,1720085433702,-390.14872965,0.00014134,2]
[331109557,1720085433713,-109.85127035,0.00014134,2]
[331109558,1720085433722,-1322.67372965,0.00014134,2]
[331109947,1720085438472,-1038.93627035,0.00014134,2]
[331109948,1720085438485,-500.0,0.00014134,2]